fUST/lending_fUST_20260528
["ID","MTS","AMOUNT","RATE_DAILY","PERIOD"]
[423197781,1779919849000,-500.0,9.315e-05,2]
[423197849,1779919849000,-500.0,9.315e-05,2]
[423197847,1779919849000,-500.0,9.315e-05,2]
[423197850,1779919849000,-500.0,9.315e-05,2]
[423197852,1779919849000,-500.0,9.315e-05,2]
[423197854,1779919849000,-500.0,9.315e-05,2]
[423197858,1779919849000,-500.0,9.315e-05,2]
[423197856,1779919849000,-500.0,9.315e-05,2]
[423197866,1779919849000,-720.23,9.315e-05,2]
[423197859,1779919849000,-829.91,9.315e-05,2]
[423197862,1779919849000,-635.8,9.315e-05,2]
[423197868,1779919849000,-318.81424996,9.452e-05,2]
[423197864,1779919849000,-5095.16,9.315e-05,2]
[423197860,1779919849000,-500.0,9.315e-05,2]
[423197870,1779919849000,-823.0,9.496e-05,2]
[423197876,1779919849000,-902.8844,9.589e-05,2]
[423197874,1779919849000,-500.0,9.589e-05,2]
[423197882,1779919849000,-500.0,9.589e-05,2]
[423197883,1779919849000,-500.0,9.589e-05,2]
[423197878,1779919849000,-420.8,9.589e-05,2]
[423197880,1779919849000,-374.63,9.589e-05,2]
[423197885,1779919849000,-500.0,9.589e-05,2]
[423197889,1779919849000,-500.0,9.589e-05,2]
[423197891,1779919849000,-548.3,9.589e-05,2]
[423197893,1779919849000,-837.14,9.589e-05,2]
[423197887,1779919849000,-435.2,9.589e-05,2]
[423197895,1779919849000,-500.0,9.589e-05,2]
[423197897,1779919849000,-500.0,9.589e-05,2]
[423197845,1779919849000,-500.0,9.315e-05,2]
[423197840,1779919849000,-500.0,9.315e-05,2]
[423197872,1779919849000,-500.0,9.589e-05,2]
[423197838,1779919849000,-500.0,9.315e-05,2]
[423197843,1779919849000,-500.0,9.315e-05,2]
[423197785,1779919849000,-500.0,9.315e-05,2]
[423197787,1779919849000,-500.0,9.315e-05,2]
[423197791,1779919849000,-500.0,9.315e-05,2]
[423197793,1779919849000,-500.0,9.315e-05,2]
[423197795,1779919849000,-500.0,9.315e-05,2]
[423197789,1779919849000,-500.0,9.315e-05,2]
[423197807,1779919849000,-500.0,9.315e-05,2]
[423197797,1779919849000,-660.5,9.315e-05,2]
[423197799,1779919849000,-500.0,9.315e-05,2]
[423197801,1779919849000,-500.0,9.315e-05,2]
[423197815,1779919849000,-500.0,9.315e-05,2]
[423197813,1779919849000,-266.24,9.315e-05,2]
[423197811,1779919849000,-500.0,9.315e-05,2]
[423197783,1779919849000,-837.14,9.315e-05,2]
[423197805,1779919849000,-500.0,9.315e-05,2]
[423197829,1779919849000,-500.0,9.315e-05,2]
[423197831,1779919849000,-500.0,9.315e-05,2]
[423197834,1779919849000,-656.24,9.315e-05,2]
[423197827,1779919849000,-500.0,9.315e-05,2]
[423197837,1779919849000,-500.0,9.315e-05,2]
[423197825,1779919849000,-500.0,9.315e-05,2]
[423197832,1779919849000,-803.54,9.315e-05,2]
[423197817,1779919849000,-500.0,9.315e-05,2]
[423197819,1779919849000,-875.54,9.315e-05,2]
[423197821,1779919849000,-500.0,9.315e-05,2]
[423197803,1779919849000,-500.0,9.315e-05,2]
[423197809,1779919849000,-338.04,9.315e-05,2]
[423197823,1779919849000,-500.0,9.315e-05,2]
[423197923,1779919850000,-500.0,9.589e-05,2]
[423197921,1779919850000,-500.0,9.589e-05,2]
[423197919,1779919850000,-875.54,9.589e-05,2]
[423197915,1779919850000,-500.0,9.589e-05,2]
[423197913,1779919850000,-500.0,9.589e-05,2]
[423197907,1779919850000,-500.0,9.589e-05,2]
[423197905,1779919850000,-660.5,9.589e-05,2]
[423197917,1779919850000,-500.0,9.589e-05,2]
[423197901,1779919850000,-500.0,9.589e-05,2]
[423197909,1779919850000,-500.0,9.589e-05,2]
[423197903,1779919850000,-462.59,9.589e-05,2]
[423197933,1779919850000,-656.24,9.589e-05,2]
[423197899,1779919850000,-500.0,9.589e-05,2]
[423197911,1779919850000,-500.0,9.589e-05,2]
[423197935,1779919850000,-500.0,9.589e-05,2]
[423197940,1779919850000,-500.0,9.589e-05,2]
[423197925,1779919850000,-500.0,9.589e-05,2]
[423197927,1779919850000,-500.0,9.589e-05,2]
[423197938,1779919850000,-500.0,9.589e-05,2]
[423197929,1779919850000,-500.0,9.589e-05,2]
[423197942,1779919850000,-500.0,9.589e-05,2]
[423197931,1779919850000,-803.54,9.589e-05,2]
[423197944,1779919850000,-500.0,9.589e-05,2]
[423197946,1779919850000,-500.0,9.589e-05,2]
[423197951,1779919850000,-500.0,9.589e-05,2]
[423197949,1779919850000,-500.0,9.589e-05,2]
[423197952,1779919850000,-829.91,9.589e-05,2]
[423197954,1779919850000,-177.04,9.589e-05,2]
[423197959,1779919850000,-2733.33945297,9.589e-05,2]
[423197937,1779919850000,-500.0,9.589e-05,2]
[423197957,1779919850000,-474.52,9.589e-05,2]
[423200839,1779919898000,-235.3797,7.9e-05,2]
[423200840,1779919928000,-152.0,6.867e-05,2]
[423200841,1779919976000,5000.0,0.00019,120]
[423200843,1779919988000,-58.4489573,6.867e-05,2]
[423200844,1779919988000,-125.0390427,7.133e-05,2]
[423200846,1779920030000,-183.488,7.062e-05,2]
[423200847,1779920052000,-773.899,6.921e-05,2]
[423200848,1779920066000,-504.169,6.921e-05,2]
[423200849,1779920093000,-223.4316,6.921e-05,2]
[423200850,1779920123000,-1613.926,6.921e-05,2]
[423200852,1779920247000,-946.7289,6.715e-05,2]
[423200853,1779920286000,-2900.0,6.715e-05,2]
[423200854,1779920315000,331.33,0.00019178,120]
[423200855,1779920354000,-214.547,6.715e-05,2]
[423200856,1779920372000,-261.74,6.715e-05,2]
[423200857,1779920386000,-169.0,6.715e-05,2]
[423200858,1779920440000,-245.29,6.516e-05,2]
[423200860,1779920462000,-2670.07,6.516e-05,2]
[423200990,1779921031000,-5000.0,5.401e-05,2]
[423200992,1779921031000,-658.47718672,5.456e-05,2]
[423200994,1779921031000,-169.0,5.51e-05,2]
[423200996,1779921031000,-300.0,5.51e-05,2]
[423201004,1779921031000,-431.27204993,5.51e-05,2]
[423201009,1779921031000,-3960.88021837,5.511e-05,2]
[423201000,1779921031000,-170.02282972,5.51e-05,2]
[423201011,1779921031000,-168.884187,5.624e-05,2]
[423201013,1779921031000,-300.0,5.677e-05,2]
[423201002,1779921031000,-598.70512035,5.51e-05,2]
[423201006,1779921031000,-855.63178163,5.511e-05,2]
[423200998,1779921031000,-300.0,5.51e-05,2]
[423201015,1779921032000,-300.0,5.677e-05,2]
[423201019,1779921032000,-300.0,5.677e-05,2]
[423201017,1779921032000,-300.0,5.677e-05,2]
[423201022,1779921032000,-300.0,5.677e-05,2]
[423201034,1779921032000,-300.0,5.677e-05,2]
[423201036,1779921032000,-300.0,5.677e-05,2]
[423201027,1779921032000,-300.0,5.677e-05,2]
[423201031,1779921032000,-300.0,5.677e-05,2]
[423201025,1779921032000,-300.0,5.677e-05,2]
[423201045,1779921032000,-300.0,5.677e-05,2]
[423201048,1779921032000,-300.0,5.677e-05,2]
[423201054,1779921032000,-268.8514533,6.291e-05,2]
[423201051,1779921032000,-300.0,5.677e-05,2]
[423201057,1779921032000,-4827.92688565,7.499e-05,2]
[423201042,1779921032000,-300.0,5.677e-05,2]
[423201039,1779921032000,-300.0,5.677e-05,2]
[423201137,1779921038000,-2849.8060003,7.499e-05,2]
[423201318,1779921040000,-2560.70751426,7.499e-05,2]
[423201319,1779921040000,-5180.09590182,7.499e-05,2]
[423201418,1779921043000,-249.94000616,6.448e-05,2]
[423201410,1779921043000,-500.0,6.448e-05,2]
[423201404,1779921043000,-500.0,6.448e-05,2]
[423201406,1779921043000,-500.0,6.448e-05,2]
[423201409,1779921043000,-500.0,6.448e-05,2]
[423201411,1779921043000,-500.0,6.448e-05,2]
[423201405,1779921043000,-500.0,6.448e-05,2]
[423201407,1779921043000,-500.0,6.448e-05,2]
[423201413,1779921043000,-500.0,6.448e-05,2]
[423201412,1779921043000,-500.0,6.448e-05,2]
[423201417,1779921043000,-351.99619528,6.448e-05,2]
[423201416,1779921043000,-148.00380472,6.448e-05,2]
[423201408,1779921043000,-500.0,6.448e-05,2]
[423201447,1779921046000,-500.0,6.448e-05,2]
[423201454,1779921046000,-500.0,6.448e-05,2]
[423201449,1779921046000,-500.0,6.448e-05,2]
[423201456,1779921046000,-500.0,6.448e-05,2]
[423201446,1779921046000,-250.05999384,6.448e-05,2]
[423201448,1779921046000,-500.0,6.448e-05,2]
[423201453,1779921046000,-500.0,6.448e-05,2]
[423201451,1779921046000,-500.0,6.448e-05,2]
[423201457,1779921046000,-500.0,6.448e-05,2]
[423201455,1779921046000,-500.0,6.448e-05,2]
[423201450,1779921046000,-500.0,6.448e-05,2]
[423201452,1779921046000,-500.0,6.448e-05,2]
[423201459,1779921046000,-500.0,6.448e-05,2]
[423201462,1779921046000,-500.0,6.448e-05,2]
[423201468,1779921046000,-468.02520943,6.448e-05,2]
[423201458,1779921046000,-500.0,6.448e-05,2]
[423201467,1779921046000,-31.97479057,6.448e-05,2]
[423201461,1779921046000,-500.0,6.448e-05,2]
[423201465,1779921046000,-339.21011556,6.448e-05,2]
[423201466,1779921046000,-500.0,6.448e-05,2]
[423201463,1779921046000,-500.0,6.448e-05,2]
[423201464,1779921046000,-500.0,6.448e-05,2]
[423201460,1779921046000,-500.0,6.448e-05,2]
[423201470,1779921046000,-500.0,6.448e-05,2]
[423201469,1779921046000,-500.0,6.448e-05,2]
[423201475,1779921047000,-4481.05346039,7.499e-05,2]
[423201472,1779921047000,-300.0,6.576e-05,2]
[423201474,1779921047000,-300.0,6.576e-05,2]
[423201473,1779921047000,-300.0,6.576e-05,2]
[423201471,1779921047000,-500.0,6.448e-05,2]
[423201479,1779921073000,-3571.39454776,6.51e-05,2]
[423201683,1779922232000,-566.28921522,5.398e-05,2]
[423201681,1779922232000,-1334.37497839,5.398e-05,2]
[423201684,1779922232000,-2837.01502161,5.398e-05,2]
[423201682,1779922232000,-262.32078478,5.398e-05,2]
[423201685,1779922232000,-1287.56288391,5.51e-05,2]
[423201845,1779922238000,-8123.89491059,7.193e-05,2]
[423201762,1779922238000,-560.78235578,5.51e-05,2]
[423201787,1779922238000,-821.72859141,5.51e-05,2]
[423201789,1779922238000,-274.27943591,5.544e-05,2]
[423201791,1779922238000,-300.0,5.733e-05,2]
[423201793,1779922238000,-300.0,5.734e-05,2]
[423201801,1779922238000,-292.66047323,5.734e-05,2]
[423201795,1779922238000,-300.0,5.734e-05,2]
[423201809,1779922238000,-300.0,5.734e-05,2]
[423201805,1779922238000,-300.0,5.734e-05,2]
[423201803,1779922238000,-7.33952677,5.734e-05,2]
[423201799,1779922238000,-300.0,5.734e-05,2]
[423201797,1779922238000,-300.0,5.734e-05,2]
[423201807,1779922238000,-300.0,5.734e-05,2]
[423201811,1779922238000,-300.0,5.734e-05,2]
[423201813,1779922238000,-300.0,5.734e-05,2]
[423201819,1779922238000,-300.0,5.734e-05,2]
[423201839,1779922238000,-152.0,6.911e-05,2]
[423201843,1779922238000,-864.0,6.938e-05,2]
[423201841,1779922238000,-587.0,6.937e-05,2]
[423201837,1779922238000,-388.4929287,6.852e-05,2]
[423201835,1779922238000,-3543.070058,6.852e-05,2]
[423201826,1779922238000,-168.458092,6.153e-05,2]
[423201830,1779922238000,-720.0,6.307e-05,2]
[423201832,1779922238000,-183.840882,6.852e-05,2]
[423201822,1779922238000,-300.0,5.734e-05,2]
[423201828,1779922238000,-420.0,6.306e-05,2]
[423201820,1779922238000,-300.0,5.734e-05,2]
[423201824,1779922238000,-600.0,5.734e-05,2]
[423201817,1779922238000,-300.0,5.734e-05,2]
[423201834,1779922238000,-1116.1404044,6.852e-05,2]
[423201815,1779922238000,-300.0,5.734e-05,2]
[423202086,1779922240000,-1825.08070627,7.193e-05,2]
[423202113,1779922241000,-20253.8769916,7.193e-05,2]
[423202355,1779922243000,-2297.19620628,7.193e-05,2]
[423202362,1779922244000,-91587.02421536,7.193e-05,2]
[423202378,1779922244000,-500.0,8.219e-05,2]
[423202380,1779922244000,-500.0,8.219e-05,2]
[423202381,1779922244000,-500.0,8.219e-05,2]
[423202385,1779922244000,-500.0,8.219e-05,2]
[423202397,1779922244000,-500.0,8.219e-05,2]
[423202398,1779922244000,-500.0,8.219e-05,2]
[423202375,1779922244000,-500.0,8.219e-05,2]
[423202386,1779922244000,-500.0,8.219e-05,2]
[423202389,1779922244000,-500.0,8.219e-05,2]
[423202392,1779922244000,-500.0,8.219e-05,2]
[423202396,1779922244000,-500.0,8.219e-05,2]
[423202394,1779922244000,-500.0,8.219e-05,2]
[423202390,1779922244000,-569.97,8.219e-05,2]
[423202395,1779922244000,-500.0,8.219e-05,2]
[423202388,1779922244000,-500.0,8.219e-05,2]
[423202377,1779922244000,-500.0,8.219e-05,2]
[423202382,1779922244000,-277.4316403,8.219e-05,2]
[423202379,1779922244000,-500.0,8.219e-05,2]
[423202369,1779922244000,-20049.10704069,7.9e-05,2]
[423202370,1779922244000,-166.20086748,8e-05,2]
[423202368,1779922244000,-1000.0,7.632e-05,2]
[423202363,1779922244000,-323.64973437,7.544e-05,2]
[423202364,1779922244000,-200.92087578,7.544e-05,2]
[423202365,1779922244000,-6218.36958488,7.6e-05,2]
[423202366,1779922244000,-536.0,7.631e-05,2]
[423202367,1779922244000,-229.99,7.631e-05,2]
[423202371,1779922244000,-167.07741502,8.025e-05,2]
[423202373,1779922244000,-587.41,8.219e-05,2]
[423202384,1779922244000,-500.0,8.219e-05,2]
[423202372,1779922244000,-540.1749,8.219e-05,2]
[423202383,1779922244000,-500.0,8.219e-05,2]
[423202374,1779922244000,-500.0,8.219e-05,2]
[423202376,1779922244000,-500.0,8.219e-05,2]
[423202391,1779922244000,-499.0,8.219e-05,2]
[423202393,1779922244000,-500.0,8.219e-05,2]
[423202387,1779922244000,-512.27,8.219e-05,2]
[423202403,1779922244000,-622.06763941,8.219e-05,2]
[423202413,1779922244000,-500.0,8.219e-05,2]
[423202418,1779922244000,-500.0,8.219e-05,2]
[423202420,1779922244000,-500.0,8.219e-05,2]
[423202419,1779922244000,-265.2956629,8.219e-05,2]
[423202421,1779922244000,-500.0,8.219e-05,2]
[423202425,1779922244000,-500.0,8.219e-05,2]
[423202427,1779922244000,-908.49,8.219e-05,2]
[423202417,1779922244000,-566.56,8.219e-05,2]
[423202426,1779922244000,-500.0,8.219e-05,2]
[423202429,1779922244000,-533.52,8.219e-05,2]
[423202428,1779922244000,-500.0,8.219e-05,2]
[423202431,1779922244000,-500.0,8.219e-05,2]
[423202432,1779922244000,-500.0,8.219e-05,2]
[423202435,1779922244000,-660.88,8.219e-05,2]
[423202434,1779922244000,-500.0,8.219e-05,2]
[423202399,1779922244000,-500.0,8.219e-05,2]
[423202430,1779922244000,-500.0,8.219e-05,2]
[423202415,1779922244000,-500.0,8.219e-05,2]
[423202433,1779922244000,-500.0,8.219e-05,2]
[423202422,1779922244000,-500.0,8.219e-05,2]
[423202424,1779922244000,-500.0,8.219e-05,2]
[423202402,1779922244000,-500.0,8.219e-05,2]
[423202404,1779922244000,-500.0,8.219e-05,2]
[423202401,1779922244000,-500.0,8.219e-05,2]
[423202407,1779922244000,-500.0,8.219e-05,2]
[423202406,1779922244000,-604.54738571,8.219e-05,2]
[423202408,1779922244000,-500.0,8.219e-05,2]
[423202410,1779922244000,-500.0,8.219e-05,2]
[423202405,1779922244000,-500.0,8.219e-05,2]
[423202411,1779922244000,-500.0,8.219e-05,2]
[423202409,1779922244000,-561.72,8.219e-05,2]
[423202412,1779922244000,-500.0,8.219e-05,2]
[423202423,1779922244000,-500.0,8.219e-05,2]
[423202414,1779922244000,-500.0,8.219e-05,2]
[423202400,1779922244000,-500.0,8.219e-05,2]
[423202416,1779922244000,-500.0,8.219e-05,2]
[423202477,1779922245000,-500.0,8.493e-05,2]
[423202478,1779922245000,-500.0,8.493e-05,2]
[423202475,1779922245000,-500.0,8.493e-05,2]
[423202487,1779922245000,-500.0,8.493e-05,2]
[423202486,1779922245000,-500.0,8.493e-05,2]
[423202469,1779922245000,-500.0,8.493e-05,2]
[423202470,1779922245000,-500.0,8.493e-05,2]
[423202471,1779922245000,-500.0,8.493e-05,2]
[423202472,1779922245000,-500.0,8.493e-05,2]
[423202468,1779922245000,-519.27,8.493e-05,2]
[423202466,1779922245000,-540.1749,8.493e-05,2]
[423202476,1779922245000,-233.8,8.493e-05,2]
[423202480,1779922245000,-360.85125394,8.493e-05,2]
[423202491,1779922245000,-908.49,8.493e-05,2]
[423202485,1779922245000,-500.0,8.493e-05,2]
[423202481,1779922245000,-500.0,8.493e-05,2]
[423202484,1779922245000,-500.0,8.493e-05,2]
[423202479,1779922245000,-500.0,8.493e-05,2]
[423202482,1779922245000,-500.0,8.493e-05,2]
[423202488,1779922245000,-500.0,8.493e-05,2]
[423202490,1779922245000,-500.0,8.493e-05,2]
[423202492,1779922245000,-500.0,8.493e-05,2]
[423202493,1779922245000,-500.0,8.493e-05,2]
[423202489,1779922245000,-500.0,8.493e-05,2]
[423202496,1779922245000,-500.0,8.493e-05,2]
[423202474,1779922245000,-500.0,8.493e-05,2]
[423202495,1779922245000,-500.0,8.493e-05,2]
[423202483,1779922245000,-500.0,8.493e-05,2]
[423202465,1779922245000,-244.0,8.395e-05,2]
[423202444,1779922245000,-654.72,8.219e-05,2]
[423202464,1779922245000,-1000.0,8.395e-05,2]
[423202494,1779922245000,-500.0,8.493e-05,2]
[423202438,1779922245000,-539.51,8.219e-05,2]
[423202437,1779922245000,-500.8,8.219e-05,2]
[423202436,1779922245000,-500.0,8.219e-05,2]
[423202441,1779922245000,-500.0,8.219e-05,2]
[423202439,1779922245000,-500.0,8.219e-05,2]
[423202442,1779922245000,-500.0,8.219e-05,2]
[423202443,1779922245000,-4272.9,8.219e-05,2]
[423202448,1779922245000,-500.0,8.219e-05,2]
[423202450,1779922245000,-500.0,8.219e-05,2]
[423202440,1779922245000,-500.0,8.219e-05,2]
[423202446,1779922245000,-500.0,8.219e-05,2]
[423202447,1779922245000,-500.0,8.219e-05,2]
[423202473,1779922245000,-500.0,8.493e-05,2]
[423202449,1779922245000,-500.0,8.219e-05,2]
[423202452,1779922245000,-500.0,8.219e-05,2]
[423202461,1779922245000,-500.0,8.219e-05,2]
[423202453,1779922245000,-500.0,8.219e-05,2]
[423202451,1779922245000,-500.0,8.219e-05,2]
[423202455,1779922245000,-500.0,8.219e-05,2]
[423202458,1779922245000,-598.32,8.219e-05,2]
[423202457,1779922245000,-500.0,8.219e-05,2]
[423202454,1779922245000,-500.0,8.219e-05,2]
[423202459,1779922245000,-500.0,8.219e-05,2]
[423202460,1779922245000,-500.0,8.219e-05,2]
[423202462,1779922245000,-500.0,8.219e-05,2]
[423202467,1779922245000,-500.0,8.493e-05,2]
[423202463,1779922245000,-198.78707172,8.274e-05,2]
[423202445,1779922245000,-927.73,8.219e-05,2]
[423202497,1779922245000,-660.88,8.493e-05,2]
[423202456,1779922245000,-682.66,8.219e-05,2]
[423202498,1779922245000,-500.0,8.493e-05,2]
[423202529,1779922245000,-500.0,8.767e-05,2]
[423202527,1779922245000,-500.0,8.767e-05,2]
[423202535,1779922245000,-298.0,8.767e-05,2]
[423202537,1779922245000,-500.0,8.767e-05,2]
[423202536,1779922245000,-500.0,8.767e-05,2]
[423202534,1779922245000,-539.4,8.767e-05,2]
[423202561,1779922245000,-682.66,8.767e-05,2]
[423202540,1779922245000,-229.58,8.767e-05,2]
[423202546,1779922245000,-500.0,8.767e-05,2]
[423202544,1779922245000,-500.0,8.767e-05,2]
[423202543,1779922245000,-500.0,8.767e-05,2]
[423202542,1779922245000,-908.49,8.767e-05,2]
[423202545,1779922245000,-500.0,8.767e-05,2]
[423202530,1779922245000,-500.0,8.767e-05,2]
[423202541,1779922245000,-500.0,8.767e-05,2]
[423202547,1779922245000,-660.88,8.767e-05,2]
[423202550,1779922245000,-594.3,8.767e-05,2]
[423202552,1779922245000,-500.0,8.767e-05,2]
[423202553,1779922245000,-4272.9,8.767e-05,2]
[423202549,1779922245000,-539.51,8.767e-05,2]
[423202551,1779922245000,-500.0,8.767e-05,2]
[423202555,1779922245000,-927.73,8.767e-05,2]
[423202554,1779922245000,-654.72,8.767e-05,2]
[423202556,1779922245000,-500.0,8.767e-05,2]
[423202560,1779922245000,-500.0,8.767e-05,2]
[423202558,1779922245000,-500.0,8.767e-05,2]
[423202557,1779922245000,-471.84,8.767e-05,2]
[423202559,1779922245000,-500.0,8.767e-05,2]
[423202548,1779922245000,-500.0,8.767e-05,2]
[423202531,1779922245000,-336.25,8.767e-05,2]
[423202499,1779922245000,-539.51,8.493e-05,2]
[423202532,1779922245000,-500.0,8.767e-05,2]
[423202533,1779922245000,-500.0,8.767e-05,2]
[423202501,1779922245000,-500.0,8.493e-05,2]
[423202506,1779922245000,-927.73,8.493e-05,2]
[423202500,1779922245000,-500.0,8.493e-05,2]
[423202511,1779922245000,-473.6,8.493e-05,2]
[423202510,1779922245000,-500.0,8.493e-05,2]
[423202508,1779922245000,-500.0,8.493e-05,2]
[423202507,1779922245000,-500.0,8.493e-05,2]
[423202504,1779922245000,-4272.9,8.493e-05,2]
[423202502,1779922245000,-500.0,8.493e-05,2]
[423202505,1779922245000,-654.72,8.493e-05,2]
[423202503,1779922245000,-631.35,8.493e-05,2]
[423202513,1779922245000,-500.0,8.493e-05,2]
[423202514,1779922245000,-500.0,8.493e-05,2]
[423202512,1779922245000,-516.1,8.493e-05,2]
[423202517,1779922245000,-598.32,8.493e-05,2]
[423202519,1779922245000,-500.0,8.493e-05,2]
[423202528,1779922245000,-500.0,8.767e-05,2]
[423202539,1779922245000,-500.0,8.767e-05,2]
[423202524,1779922245000,-160.0,8.558e-05,2]
[423202526,1779922245000,-540.1749,8.767e-05,2]
[423202523,1779922245000,-766.98895499,8.558e-05,2]
[423202521,1779922245000,-200.92087577,8.535e-05,2]
[423202538,1779922245000,-500.0,8.767e-05,2]
[423202522,1779922245000,-160.0,8.558e-05,2]
[423202520,1779922245000,-504.26,8.493e-05,2]
[423202516,1779922245000,-500.0,8.493e-05,2]
[423202515,1779922245000,-682.66,8.493e-05,2]
[423202518,1779922245000,-500.0,8.493e-05,2]
[423202525,1779922245000,-160.0,8.558e-05,2]
[423202602,1779922246000,-9222.6830572,9.123e-05,2]
[423202617,1779922246000,-151.5,9.315e-05,2]
[423202607,1779922246000,-305.90664452,9.315e-05,2]
[423202599,1779922246000,-500.0,9.041e-05,2]
[423202603,1779922246000,-1000.0,9.235e-05,2]
[423202600,1779922246000,-598.32,9.041e-05,2]
[423202597,1779922246000,-500.0,9.041e-05,2]
[423202595,1779922246000,-500.0,9.041e-05,2]
[423202593,1779922246000,-927.73,9.041e-05,2]
[423202601,1779922246000,-500.0,9.041e-05,2]
[423202605,1779922246000,-1025.6534,9.315e-05,2]
[423202618,1779922246000,-500.0,9.315e-05,2]
[423202598,1779922246000,-682.66,9.041e-05,2]
[423202606,1779922246000,-500.0,9.315e-05,2]
[423202624,1779922246000,-500.0,9.315e-05,2]
[423202610,1779922246000,-500.0,9.315e-05,2]
[423202611,1779922246000,-500.0,9.315e-05,2]
[423202608,1779922246000,-388.47,9.315e-05,2]
[423202613,1779922246000,-500.0,9.315e-05,2]
[423202609,1779922246000,-500.0,9.315e-05,2]
[423202615,1779922246000,-500.0,9.315e-05,2]
[423202614,1779922246000,-500.0,9.315e-05,2]
[423202616,1779922246000,-908.49,9.315e-05,2]
[423202619,1779922246000,-500.0,9.315e-05,2]
[423202620,1779922246000,-500.0,9.315e-05,2]
[423202631,1779922246000,-373.68,9.315e-05,2]
[423202629,1779922246000,-500.0,9.315e-05,2]
[423202632,1779922246000,-682.66,9.315e-05,2]
[423202596,1779922246000,-309.71,9.041e-05,2]
[423202612,1779922246000,-500.0,9.315e-05,2]
[423202604,1779922246000,-492.0,9.235e-05,2]
[423202580,1779922246000,-500.0,9.041e-05,2]
[423202589,1779922246000,-500.0,9.041e-05,2]
[423202566,1779922246000,-152.0,8.863e-05,2]
[423202630,1779922246000,-500.0,9.315e-05,2]
[423202564,1779922246000,-504.7,8.767e-05,2]
[423202563,1779922246000,-598.32,8.767e-05,2]
[423202562,1779922246000,-500.0,8.767e-05,2]
[423202567,1779922246000,-178.8578,8.892e-05,2]
[423202572,1779922246000,-500.0,9.041e-05,2]
[423202569,1779922246000,-540.1749,9.041e-05,2]
[423202570,1779922246000,-500.0,9.041e-05,2]
[423202575,1779922246000,-500.0,9.041e-05,2]
[423202568,1779922246000,-166.20086744,9.006e-05,2]
[423202578,1779922246000,-500.0,9.041e-05,2]
[423202571,1779922246000,-500.0,9.041e-05,2]
[423202576,1779922246000,-500.0,9.041e-05,2]
[423202577,1779922246000,-406.2,9.041e-05,2]
[423202573,1779922246000,-500.0,9.041e-05,2]
[423202574,1779922246000,-500.0,9.041e-05,2]
[423202590,1779922246000,-500.0,9.041e-05,2]
[423202581,1779922246000,-908.49,9.041e-05,2]
[423202591,1779922246000,-4272.9,9.041e-05,2]
[423202592,1779922246000,-654.72,9.041e-05,2]
[423202579,1779922246000,-500.0,9.041e-05,2]
[423202582,1779922246000,-500.0,9.041e-05,2]
[423202583,1779922246000,-500.0,9.041e-05,2]
[423202584,1779922246000,-500.0,9.041e-05,2]
[423202585,1779922246000,-500.0,9.041e-05,2]
[423202586,1779922246000,-660.88,9.041e-05,2]
[423202587,1779922246000,-500.0,9.041e-05,2]
[423202588,1779922246000,-539.51,9.041e-05,2]
[423202594,1779922246000,-500.0,9.041e-05,2]
[423202565,1779922246000,-500.0,8.767e-05,2]
[423202626,1779922246000,-4272.9,9.315e-05,2]
[423202622,1779922246000,-500.0,9.315e-05,2]
[423202667,1779922246000,-500.0,9.863e-05,2]
[423202666,1779922246000,-500.0,9.863e-05,2]
[423202661,1779922246000,-500.0,9.589e-05,2]
[423202668,1779922246000,-331.64434217,9.863e-05,2]
[423202664,1779922246000,-388.4929287,9.821e-05,2]
[423202660,1779922246000,-682.66,9.589e-05,2]
[423202665,1779922246000,-263.83,9.863e-05,2]
[423202662,1779922246000,-598.32,9.589e-05,2]
[423202671,1779922246000,-500.0,9.863e-05,2]
[423202673,1779922246000,-908.49,9.863e-05,2]